bitfinex-derivatives/quotes_SOLF0:USTF0_20241218
["timestamp","ask_amount","ask_price","bid_price","bid_amount"]
[1734558363483,17.60674419,209.39,209.19,17.60674419]
[1734558363691,17.60674419,209.35,209.19,17.60674419]
[1734558363884,2.3916,209.22,209.17,2.3921]
[1734558364090,17.60674419,209.35,209.15,17.60674419]
[1734558364091,5.78,209.32,209.15,17.60674419]
[1734558364488,2.391,209.27,209.19,23.4629446]
[1734558364686,5.78,209.32,209.19,23.4629446]
[1734558364882,17.60674419,209.39,209.19,23.4629446]
[1734558365087,5.78,209.38,209.19,23.4629446]
[1734558366388,2.3909,209.28,209.22,2.3914]
[1734558366591,5.69858067,209.35,209.19,5.85620041]
[1734558366790,2.3921,209.17,209.13,9.4054]
[1734558366997,5.78,209.23,209.13,6.2267]
[1734558367187,5.78,209.22,209.07,3.0749]
[1734558367383,5.78,209.22,209.07,14.89228251]
[1734558367587,5.78,209.22,209.0,55.83617698]
[1734558367588,17.60674419,209.2,209.0,17.60674419]
[1734558367783,17.60674419,209.16,209.01,6.066]
[1734558367988,2.3934,209.06,209.01,2.9734]
[1734558368385,5.78,209.12,209.01,2.9734]
[1734558368586,23.38674419,209.12,209.01,2.9734]
[1734558368894,23.38674419,209.12,208.99,8.84316613]
[1734558368895,23.38674419,209.12,208.99,3.0926]
[1734558369095,2.3933,209.07,209.0,2.394]
[1734558369292,5.78,209.12,208.99,3.0926]
[1734558369293,17.60674419,209.12,208.99,3.0926]
[1734558369492,5.78,209.11,208.99,3.0926]
[1734558371001,5.78,209.16,209.0,17.60674419]
[1734558371190,23.38674419,209.16,209.0,17.60674419]
[1734558372595,23.38674419,209.16,208.99,3.0926]
[1734558372792,17.60674419,209.12,208.99,3.0926]
[1734558373195,23.38674419,209.16,208.99,3.0926]
[1734558373499,23.38674419,209.16,208.99,20.69934419]
[1734558374396,17.60674419,209.08,208.97,2.9734]
[1734558374700,5.78,209.07,208.94,3.0749]
[1734558374998,5.78,209.07,208.93,3.1741]
[1734558375697,17.60674419,209.04,208.86,23.85664419]
[1734558375899,17.60674419,209.0,208.88,5.7907186]
[1734558376202,2.3952,208.9,208.86,6.2499]
[1734558376391,5.78,208.98,208.86,6.2499]
[1734558376793,2.3951,208.91,208.86,6.2499]
[1734558376995,2.3951,208.91,208.86,11.99579613]
[1734558377294,17.60674419,209.0,208.86,11.99579613]
[1734558377489,17.60674419,208.96,208.86,3.1103]
[1734558377698,5.78,208.95,208.85,3.1741]
[1734558377894,2.3955,208.87,208.85,3.1741]
[1734558378094,5.78,208.95,208.85,3.1741]
[1734558378700,2.3953,208.9,208.85,3.1741]
[1734558378992,5.78,208.95,208.85,3.1741]
[1734558379197,17.60674419,208.91,208.71,17.60674419]
[1734558379401,17.60674419,208.91,208.72,6.2021]
[1734558379801,17.60674419,208.91,208.77,8.19839831]
[1734558380002,6.54729806,208.94,208.77,5.80179831]
[1734558380302,5.78,208.95,208.79,17.60674419]
[1734558380995,5.78,208.95,208.77,5.80179831]
[1734558381295,2.3958,208.85,208.78,2.3964]
[1734558381499,17.60674419,208.92,208.77,5.80179831]
[1734558381899,2.3959,208.84,208.78,2.3965]
[1734558382291,17.60674419,208.92,208.78,2.3965]
[1734558382492,2.3956,208.86,208.79,2.3964]
[1734558382705,17.60674419,208.92,208.77,5.80179831]
[1734558383603,23.31194169,208.96,208.78,17.60674419]
[1734558383915,2.3949,208.93,208.82,17.60674419]
[1734558384107,2.3949,208.93,208.83,8.9244]
[1734558384303,2.3944,208.97,208.89,2.3952]
[1734558384498,5.78,209.03,208.86,17.60674419]
[1734558384698,5.78,209.07,208.9,17.60674419]
[1734558384998,2.3936,209.04,208.97,2.3943]
[1734558385197,5.78,209.07,208.95,9.173]
[1734558385396,2.3937,209.03,208.95,9.173]
[1734558385698,5.78,209.07,208.95,9.173]
[1734558386098,2.3938,209.02,208.95,11.5676]
[1734558386406,5.78,209.07,208.95,9.173]
[1734558386608,2.3934,209.06,208.95,9.173]
[1734558386807,23.2642731,209.1,208.95,9.173]
[1734558387312,23.2642731,209.1,208.95,11.5676]
[1734558387602,23.2642731,209.1,208.95,9.173]
[1734558388613,2.3937,209.03,208.97,2.3943]
[1734558389112,23.2642731,209.1,208.95,11.5675]
[1734558389706,23.2642731,209.1,208.97,2.3943]
[1734558390107,2.3933,209.07,208.97,2.3943]
[1734558390412,23.2642731,209.1,208.98,2.3942]
[1734558390909,17.60674419,209.1,208.98,2.3942]
[1734558391209,2.3945,208.96,208.95,6.1538]
[1734558391413,17.60674419,209.04,208.89,3.1135]
[1734558391609,23.34674419,209.04,208.92,2.3949]
[1734558391808,2.3942,208.99,208.92,2.3949]
[1734558392010,23.34674419,209.04,208.92,2.3949]
[1734558392205,23.34674419,209.04,208.89,9.4924]
[1734558395318,17.60674419,209.08,208.9,17.60674419]
[1734558395721,2.3939,209.01,208.95,2.3946]
[1734558396016,17.60674419,209.08,208.9,17.60674419]
[1734558397416,17.60674419,209.04,208.89,9.4924]
[1734558397615,17.60674419,208.92,208.66,19.0029328]
[1734558397813,17.60674419,208.92,208.76,2.9549]
[1734558398619,7.7586,208.99,208.81,17.60674419]
[1734558398821,2.0186,208.99,208.81,17.60674419]
[1734558399123,2.3956,208.86,208.79,5.74]
[1734558399516,17.60674419,208.97,208.79,5.74]
[1734558399720,17.60674419,208.97,208.8,17.60674419]
[1734558399923,2.0186,208.99,208.8,17.60674419]
[1734558400312,5.81192534,208.97,208.8,17.60674419]
[1734558401221,5.81192534,208.97,208.78,6.064]
[1734558401222,17.60674419,208.94,208.78,6.064]
[1734558401822,17.60674419,208.9,208.78,6.064]
[1734558403120,17.60674419,208.86,208.66,17.60674419]
[1734558403324,17.60674419,208.82,208.67,3.0784]
[1734558403625,2.3972,208.72,208.67,8.6268]
[1734558403927,23.34674419,208.82,208.67,11.92214609]
[1734558404228,17.60674419,208.78,208.67,11.92214609]
[1734558404824,17.60674419,208.78,208.67,5.69314609]
[1734558405024,23.34674419,208.82,208.67,5.69314609]
[1734558405227,2.3964,208.8,208.67,5.69314609]
[1734558405528,23.34674419,208.82,208.67,5.69314609]
[1734558405825,2.3964,208.8,208.7,17.60674419]
[1734558406022,17.60674419,208.86,208.67,5.69314609]
[1734558406218,17.60674419,208.82,208.67,5.69314609]
[1734558406520,2.3971,208.73,208.67,8.09084609]
[1734558406728,17.60674419,208.82,208.67,5.69314609]
[1734558407523,5.7158974,208.85,208.67,5.69314609]
[1734558407724,2.3965,208.78,208.67,5.69314609]
[1734558408025,5.7158974,208.85,208.67,5.69314609]
[1734558408223,2.3967,208.77,208.67,5.69314609]
[1734558408524,5.7158974,208.85,208.69,17.60674419]
[1734558409127,5.7158974,208.85,208.68,5.74]
[1734558409527,2.3969,208.75,208.69,2.3975]
[1734558411022,2.3971,208.73,208.67,8.09084609]
[1734558411229,17.60674419,208.82,208.67,5.69314609]
[1734558411527,17.60674419,208.82,208.63,6.0146]
[1734558411528,2.397,208.74,208.63,6.0146]
[1734558411724,5.74,208.77,208.63,6.0146]
[1734558412522,5.74,208.77,208.65,5.64458092]
[1734558412721,5.74,208.77,208.65,8.04258092]
[1734558412919,5.74,208.77,208.65,5.64458092]
[1734558413328,2.3972,208.73,208.66,2.3979]
[1734558413529,5.74,208.77,208.66,2.3979]
[1734558414128,2.397,208.74,208.66,2.3979]
[1734558414331,5.74,208.77,208.66,2.3979]
[1734558414726,17.60674419,208.82,208.65,5.64458092]
[1734558415226,17.60674419,208.82,208.69,2.3975]
[1734558415227,2.3969,208.75,208.69,2.3975]
[1734558415930,2.3969,208.75,208.65,5.64458092]
[1734558415931,2.3969,208.75,208.7,2.3974]
[1734558416429,17.60674419,208.86,208.68,17.60674419]
[1734558416625,17.60674419,208.86,208.72,17.60674419]
[1734558416931,5.74,208.88,208.73,8.9565]
[1734558417126,5.74,208.88,208.74,2.3969]
[1734558417431,11.59779818,208.87,208.73,8.9565]
[1734558417630,11.59779818,208.87,208.75,2.3969]
[1734558419028,2.8007,208.89,208.77,2.3966]
[1734558419228,2.396,208.83,208.77,2.3966]
[1734558419530,5.80775119,208.88,208.77,2.3966]
[1734558419732,2.396,208.83,208.78,2.3965]
[1734558419931,5.80775119,208.88,208.73,8.9565]
[1734558420528,17.60674419,208.9,208.73,8.9565]
[1734558421437,2.3958,208.84,208.78,2.3964]
[1734558421833,5.7,208.93,208.76,17.60674419]
[1734558422033,5.67659358,208.92,208.76,17.60674419]
[1734558422231,127.80798846,209.08,208.76,17.60674419]
[1734558422426,6.55918377,208.99,208.8,17.60674419]
[1734558422628,5.7,208.99,208.8,17.60674419]
[1734558422933,2.7935,209.03,208.8,17.60674419]
[1734558422934,5.84514262,208.97,208.8,17.60674419]
[1734558423131,5.7,208.99,208.84,17.60674419]
[1734558423331,2.3941,208.99,208.88,17.60674419]
[1734558423533,68.19388002,209.04,208.88,17.60674419]
[1734558423730,44.78456191,209.04,208.88,17.60674419]
[1734558423936,2.7935,209.09,208.93,17.60674419]
[1734558424235,2.3937,209.03,208.96,2.3944]
[1734558424439,7.79900599,209.09,208.92,5.69327128]
[1734558424632,17.60674419,209.04,208.92,5.69327128]
[1734558424832,2.3943,208.97,208.92,5.69327128]
[1734558425036,17.60674419,209.04,208.92,5.69327128]
[1734558425738,2.3942,208.98,208.92,5.69327128]
[1734558426144,2.394,209.0,208.92,5.69327128]
[1734558426330,5.7,209.08,208.92,5.69327128]
[1734558426740,2.3944,208.96,208.89,2.3951]
[1734558426937,5.7,209.08,208.88,5.8383667]
[1734558426938,17.60674419,209.01,208.88,5.8383667]
[1734558427335,2.3942,208.98,208.88,5.8383667]
[1734558427531,5.7,209.08,208.89,5.7]
[1734558428039,5.7,209.08,208.92,17.60674419]
[1734558428040,2.3936,209.03,208.92,17.60674419]
[1734558428340,5.7,209.08,208.92,17.60674419]
[1734558428840,5.7,209.08,208.97,2.3942]
[1734558429039,5.7,209.08,208.92,17.60674419]
[1734558429336,17.60674419,209.1,208.99,2.394]
[1734558429531,17.60674419,209.1,208.92,17.60674419]
[1734558429937,2.393,209.09,209.02,2.3936]
[1734558430132,2.0135,209.19,209.0,17.60674419]
[1734558430330,2.0135,209.19,209.0,23.30674419]
[1734558430538,17.60674419,209.2,209.0,23.30674419]
[1734558430840,5.66412283,209.19,209.0,23.30674419]
[1734558431042,2.3928,209.11,209.04,2.3934]
[1734558431234,17.60674419,209.16,209.04,5.72099384]
[1734558432035,34.23222092,209.19,209.07,2.3931]
[1734558432240,28.56809809,209.23,209.05,28.56809809]
[1734558432437,28.56809809,209.23,209.09,28.56809809]
[1734558432738,28.56809809,209.23,209.12,2.3925]
[1734558433038,28.56809809,209.23,209.1,6.1007]
[1734558433039,2.3924,209.13,209.1,6.3275]
[1734558433431,28.56809809,209.23,209.1,6.3275]
[1734558433736,5.81060877,209.24,209.04,5.72099384]
[1734558433737,28.56809809,209.19,209.04,5.72099384]
[1734558433937,28.56809809,209.19,209.05,3.1646]
[1734558434134,28.56809809,209.23,209.08,28.56809809]
[1734558434834,2.3918,209.19,209.13,2.3924]
[1734558435043,2.3918,209.19,209.08,28.56809809]
[1734558435239,28.56809809,209.23,209.08,28.56809809]
[1734558435436,87.64886905,209.4,209.08,34.26809809]
[1734558435437,34.26809809,209.27,209.08,34.26809809]
[1734558435737,28.56809809,209.27,209.08,34.26809809]
[1734558436045,5.83507083,209.32,209.16,28.56809809]
[1734558436238,5.83507083,209.32,209.17,9.3199]
[1734558436735,28.56809809,209.31,209.17,9.3199]
[1734558437241,28.56809809,209.23,209.01,28.56809809]
[1734558437437,28.56809809,209.19,209.06,6.3509]
[1734558437637,2.3929,209.09,209.06,3.2185]
[1734558437835,28.56809809,209.15,209.06,3.2185]
[1734558438243,28.56809809,209.15,208.97,34.26809809]
[1734558438447,34.26809809,209.15,208.98,6.2171]
[1734558439235,5.7,209.15,208.98,6.2171]
[1734558439439,28.56809809,209.19,208.98,6.2171]
[1734558439440,28.56809809,209.19,209.02,5.74906239]
[1734558439637,28.56809809,209.19,209.03,3.0451]
[1734558440637,28.56809809,209.19,209.03,8.7451]
[1734558441536,2.3921,209.16,209.03,8.7451]
[1734558441742,28.56809809,209.19,209.03,8.7451]
[1734558441939,2.392,209.17,209.11,2.3927]
[1734558442243,5.7,209.22,209.05,28.56809809]
[1734558442543,2.392,209.17,209.11,2.3926]
[1734558443039,2.392,209.17,209.03,8.7451]
[1734558443242,5.7,209.22,209.03,8.7451]
[1734558443445,5.7,209.22,209.06,28.56809809]
[1734558444236,2.3919,209.18,209.06,28.56809809]
[1734558444443,5.7,209.22,209.03,8.7451]
[1734558444634,2.3921,209.16,209.1,2.3927]
[1734558444945,5.7,209.22,209.03,3.0451]
[1734558445238,28.56809809,209.15,209.03,3.0451]
[1734558445444,28.56809809,209.15,209.02,5.74906239]
[1734558445641,2.3932,209.07,209.02,5.74906239]
[1734558445836,5.7,209.14,209.02,5.74906239]
[1734558446037,28.56809809,209.19,209.03,2.9669]
[1734558446338,2.392,209.18,209.05,28.56809809]
[1734558446640,34.17603811,209.23,209.06,5.7]
[1734558446841,2.3918,209.19,209.12,2.3924]
[1734558447033,28.56809809,209.23,209.06,5.7]
[1734558447436,28.56809809,209.23,209.08,2.3929]
[1734558447743,28.56809809,209.19,209.03,2.9669]
[1734558448350,28.56809809,209.19,209.05,2.3934]
[1734558448544,28.56809809,209.15,208.97,28.56809809]
[1734558448847,28.56809809,209.11,208.94,3.0078]
[1734558449143,28.56809809,209.07,208.94,3.0078]
[1734558449653,28.56809809,209.07,208.95,5.65622729]
[1734558449943,2.3934,209.06,209.0,2.3939]
[1734558450246,28.56809809,209.11,208.96,3.0617]
[1734558450943,2.3935,209.04,208.99,2.3941]
[1734558452039,28.56809809,209.11,208.96,3.0617]
[1734558452443,28.56809809,209.07,208.94,3.0078]
[1734558452647,2.3941,208.99,208.94,8.89733302]
[1734558453047,5.66,209.06,208.94,8.89733302]
[1734558453550,2.3933,209.06,208.94,8.89733302]
[1734558453744,28.56809809,209.11,208.94,8.89733302]
[1734558454247,28.56809809,209.15,208.97,28.56809809]
[1734558454455,2.3928,209.1,209.01,2.3937]
[1734558454647,28.56809809,209.15,208.97,28.56809809]
[1734558454841,5.60876243,209.14,208.97,28.56809809]
[1734558455045,2.3925,209.13,209.07,2.3931]
[1734558455246,28.56809809,209.19,209.01,28.56809809]
[1734558455452,34.22809809,209.19,209.02,2.9322]
[1734558455747,2.3923,209.14,209.09,2.3929]
[1734558455950,39.96522875,209.19,209.02,2.9322]
[1734558456351,34.30522875,209.19,209.02,2.9322]
[1734558456553,2.3924,209.14,209.08,2.393]
[1734558457653,2.3925,209.13,209.08,2.393]
[1734558459053,2.3926,209.12,209.06,2.3932]
[1734558459253,34.30522875,209.19,209.04,3.0807]
[1734558459657,28.56809809,209.19,209.05,5.63460271]
[1734558459959,28.56809809,209.23,209.05,34.2027008]
[1734558460159,2.3919,209.18,209.05,34.2027008]
[1734558460353,28.56809809,209.23,209.05,34.2027008]
[1734558460853,2.7603,209.27,209.05,34.2027008]
[1734558460854,28.56809809,209.27,209.09,28.56809809]
[1734558461456,2.3911,209.26,209.19,2.3917]
[1734558461651,28.56809809,209.27,209.19,2.3917]
[1734558461954,28.56809809,209.27,209.09,28.56809809]
[1734558462759,2.3914,209.23,209.17,2.392]
[1734558463259,34.25036893,209.3,209.17,2.392]
[1734558463460,2.3918,209.19,209.09,28.56809809]
[1734558463659,28.56809809,209.26,209.09,28.56809809]
[1734558464764,2.3915,209.21,209.15,2.3922]
[1734558464958,34.22809809,209.26,209.09,28.56809809]
[1734558466264,1.5207,209.25,209.09,28.56809809]
[1734558466464,2.3915,209.21,209.09,28.56809809]
[1734558466660,28.56809809,209.23,209.05,34.2027008]
[1734558466865,28.56809809,209.19,209.06,13.87031655]
[1734558467066,28.56809809,209.11,208.99,13.87031655]
[1734558467261,28.56809809,209.07,208.99,13.87031655]
[1734558467467,28.56809809,209.07,208.97,19.39709132]
[1734558467867,28.56809809,209.07,208.96,6.1201]
[1734558468061,2.394,209.0,208.96,6.1201]
[1734558468367,28.56809809,209.07,208.9,13.87031655]
[1734558468566,2.7544,209.06,208.92,5.8190284]
[1734558469269,28.56809809,209.07,208.92,5.8190284]
[1734558469466,11.46926879,209.09,208.92,5.8190284]
[1734558469768,5.66,209.09,208.93,28.56809809]
[1734558470166,2.3935,209.04,208.98,2.3941]
[1734558471571,34.41192393,209.1,208.93,28.56809809]
[1734558471772,5.66,209.09,208.92,5.8190284]
[1734558471971,28.56809809,209.06,208.92,5.8190284]
[1734558472168,28.56809809,209.06,208.89,28.56809809]
[1734558472370,0.7659,209.05,208.87,6.349]
[1734558472567,28.56809809,209.02,208.87,6.349]
[1734558472772,5.66,209.01,208.87,6.349]
[1734558473067,28.56809809,208.94,208.84,5.81308706]
[1734558473473,28.56809809,209.0,208.84,5.81308706]
[1734558473971,2.3949,208.92,208.84,8.20878706]
[1734558474173,28.56809809,209.0,208.84,8.20878706]
[1734558474368,28.56809809,208.96,208.84,8.20878706]
[1734558474572,2.3949,208.92,208.86,2.3955]
[1734558474772,28.56809809,208.96,208.86,2.3955]
[1734558475364,2.3948,208.93,208.86,2.3955]
[1734558475568,2.3948,208.93,208.85,6.113]
[1734558475774,2.3948,208.93,208.87,2.3954]
[1734558476576,2.3948,208.93,208.85,6.113]
[1734558477474,2.3948,208.93,208.86,2.3955]
[1734558479473,2.3949,208.92,208.86,2.3955]
[1734558479778,28.56809809,208.92,208.74,2.9937]
[1734558479968,2.3962,208.81,208.74,2.9937]
[1734558480171,5.62,208.85,208.74,2.9937]
[1734558480373,5.62,208.85,208.75,5.62620128]
[1734558480574,28.56809809,208.84,208.71,25.46499132]
[1734558480873,28.56809809,208.84,208.71,11.69755047]
[1734558481074,28.56809809,208.84,208.68,3.0591]
[1734558481781,28.56809809,208.8,208.66,6.0679]
[1734558482077,2.3969,208.76,208.66,6.0679]
[1734558482278,17.64826167,208.79,208.66,6.0679]
[1734558482279,5.62,208.77,208.66,6.0679]
[1734558482671,2.3972,208.73,208.66,6.0679]
[1734558482876,5.62,208.77,208.67,5.62701344]
[1734558483268,2.3974,208.71,208.67,5.62701344]
[1734558483780,5.62,208.77,208.67,5.62701344]
[1734558484381,5.62,208.89,208.7,28.67599379]
[1734558484575,2.3961,208.83,208.76,2.3967]
[1734558484777,5.62,208.89,208.7,28.67599379]
[1734558485077,28.67599379,208.85,208.67,5.62701344]
[1734558485278,34.29599379,208.89,208.7,28.67599379]
[1734558486075,28.67599379,208.85,208.7,28.67599379]
[1734558486280,2.3961,208.82,208.75,2.3969]
[1734558486674,34.29599379,208.89,208.75,2.3969]
[1734558487075,28.67599379,208.89,208.74,28.67599379]
[1734558487270,28.67599379,208.89,208.75,2.9946]
[1734558488081,28.67599379,208.89,208.78,2.3965]
[1734558488271,28.67599379,208.89,208.75,2.9946]
[1734558488474,2.3959,208.84,208.79,2.3964]
[1734558488676,28.67599379,208.89,208.75,2.9946]
[1734558488977,2.3961,208.82,208.76,2.3967]
[1734558489178,28.67599379,208.89,208.75,2.9946]
[1734558490476,28.67599379,208.89,208.67,5.62701344]
[1734558490682,2.3971,208.73,208.68,2.3976]
[1734558490881,5.62,208.8,208.67,5.62701344]
[1734558492684,2.3973,208.72,208.67,5.62701344]
[1734558492880,28.67599379,208.78,208.67,5.62701344]
[1734558493082,5.62,208.8,208.61,3.1652]
[1734558493083,28.67599379,208.74,208.61,3.1652]
[1734558494174,28.67599379,208.74,208.62,5.73258964]
[1734558494377,0.7706,208.79,208.62,5.73258964]
[1734558494579,2.3973,208.71,208.66,2.3978]
[1734558494780,5.62,208.78,208.62,5.73258964]
[1734558495080,5.62,208.83,208.68,28.67599379]
[1734558495283,5.62,208.88,208.69,6.2459]
[1734558495676,2.3959,208.83,208.73,2.397]
[1734558495885,2.3959,208.83,208.69,6.2459]
[1734558495886,5.62,208.88,208.69,6.2459]
[1734558496386,2.3963,208.79,208.73,2.3969]
[1734558497385,5.62,208.88,208.73,2.3969]
[1734558497386,2.3964,208.78,208.73,2.3969]
[1734558497582,5.62,208.88,208.69,6.2459]
[1734558497782,28.67599379,208.79,208.69,6.2459]
[1734558498081,34.29599379,208.79,208.66,2.3977]
[1734558498679,2.3972,208.71,208.66,2.3977]
[1734558498885,34.29599379,208.79,208.63,6.4183]
[1734558499283,2.397,208.73,208.63,6.4183]
[1734558499687,28.67599379,208.79,208.68,2.3975]
[1734558499688,2.3965,208.77,208.68,2.3975]
[1734558499885,5.62,208.82,208.64,28.67599379]
[1734558500384,2.3965,208.77,208.72,2.3971]
[1734558501487,2.3967,208.76,208.64,28.67599379]
[1734558502184,5.62,208.82,208.64,28.67599379]
[1734558502384,5.62,208.81,208.63,6.4183]
[1734558502584,2.3967,208.76,208.63,6.4183]
[1734558502782,5.62,208.81,208.63,6.4183]
[1734558503089,28.67599379,208.79,208.63,6.4183]
[1734558503987,28.67599379,208.79,208.64,2.398]
[1734558504383,28.67599379,208.79,208.63,6.4183]
[1734558504985,2.3974,208.69,208.64,2.398]
[1734558505189,28.67599379,208.79,208.63,6.4183]
[1734558505584,2.3973,208.71,208.65,2.3978]
[1734558505789,28.67599379,208.79,208.63,6.4183]
[1734558506189,28.67599379,208.79,208.68,2.3974]
[1734558506385,28.67599379,208.79,208.63,6.4183]
[1734558506588,5.62,208.81,208.67,28.67599379]
[1734558506789,2.3965,208.78,208.67,28.67599379]
[1734558507191,2.3969,208.74,208.67,28.67599379]
[1734558507390,5.62,208.81,208.67,28.67599379]
[1734558508191,5.62,208.81,208.64,17.64187197]
[1734558508892,5.62,208.81,208.68,2.3975]
[1734558508893,2.397,208.74,208.68,2.3975]
[1734558509294,2.3972,208.71,208.64,17.64187197]
[1734558509492,17.64187197,208.78,208.63,6.4183]
[1734558509892,2.397,208.73,208.68,2.3975]
[1734558510592,17.64187197,208.78,208.67,2.3977]
[1734558511797,17.64187197,208.78,208.66,2.3978]
[1734558512793,17.64187197,208.78,208.63,6.4183]
[1734558512995,17.64187197,208.74,208.63,6.4183]
[1734558513196,5.6,208.73,208.62,5.73258964]
[1734558513389,17.64187197,208.7,208.55,23.11301655]
[1734558513597,2.3983,208.62,208.55,23.11301655]
[1734558513897,17.64187197,208.7,208.55,23.11301655]
[1734558514095,17.64187197,208.7,208.59,5.8099726]
[1734558514601,17.64187197,208.7,208.62,2.3982]
[1734558514602,2.3978,208.66,208.62,2.3982]
[1734558514799,5.6,208.73,208.59,5.8099726]
[1734558515300,17.64187197,208.7,208.59,5.8099726]
[1734558516402,17.64187197,208.7,208.55,9.2427]
[1734558516903,17.64187197,208.7,208.56,5.62711572]
[1734558517092,17.64187197,208.66,208.56,5.62711572]
[1734558517297,5.6,208.65,208.56,5.62711572]
[1734558517498,2.3985,208.6,208.56,8.02601572]
[1734558518000,2.3985,208.6,208.56,5.62711572]
[1734558518199,5.6,208.65,208.51,19.89171655]
[1734558518701,2.3987,208.59,208.55,5.71798848]
[1734558518896,2.3987,208.59,208.46,2.9227]
[1734558518897,17.64187197,208.62,208.47,13.87031655]
[1734558519099,17.64187197,208.5,208.48,13.87031655]
[1734558519299,2.4004,208.44,208.4,51.72557687]
[1734558519601,17.64187197,208.5,208.4,19.39709132]
[1734558519801,5.6,208.49,208.4,19.39709132]
[1734558519997,2.4001,208.46,208.4,21.79789132]
[1734558520301,5.6,208.49,208.4,21.79789132]
[1734558520302,5.6,208.49,208.4,19.39709132]
[1734558520504,21.64187197,208.54,208.39,23.26312107]
[1734558520505,4.0,208.54,208.39,23.26312107]
[1734558521405,2.3995,208.51,208.44,2.4003]
[1734558522405,2.3993,208.53,208.39,23.26312107]
[1734558523099,5.6,208.56,208.39,23.26312107]
[1734558523501,5.6,208.56,208.45,2.4001]
[1734558523700,2.4,208.47,208.39,5.6212491]
[1734558523904,17.64187197,208.51,208.39,5.6212491]
[1734558524500,5.6,208.56,208.45,2.4002]
[1734558524707,60.42,208.61,208.41,17.64187197]
[1734558524904,78.06187197,208.61,208.41,17.64187197]
[1734558525299,83.81998016,208.61,208.41,17.64187197]
[1734558525799,2.3994,208.53,208.47,2.3999]
[1734558526000,2.3994,208.53,208.39,5.6212491]
[1734558526001,17.64187197,208.57,208.39,5.6212491]
[1734558526201,17.64187197,208.53,208.39,5.6212491]
[1734558526402,23.24187197,208.53,208.39,5.6212491]
[1734558526602,2.3999,208.48,208.41,2.4006]
[1734558527002,23.24187197,208.53,208.39,5.6212491]
[1734558527205,2.3998,208.49,208.39,8.0221491]
[1734558527406,23.24187197,208.53,208.39,8.0221491]
[1734558527707,23.24187197,208.53,208.36,2.9303]
[1734558527708,17.64187197,208.49,208.36,2.9303]
[1734558528207,17.64187197,208.45,208.37,5.68474065]
[1734558528407,2.4007,208.41,208.37,5.68474065]
[1734558528806,17.64187197,208.49,208.37,5.68474065]
[1734558529006,2.4,208.47,208.41,2.4006]
[1734558529209,5.6,208.52,208.37,5.68474065]
[1734558529409,5.6,208.52,208.37,23.32661262]
[1734558529602,5.6,208.55,208.37,23.32661262]
[1734558529905,5.6,208.55,208.41,17.64187197]
[1734558530099,5.6,208.55,208.42,6.0324]
[1734558530502,2.3994,208.53,208.47,2.4]
[1734558530908,78.21998016,208.61,208.42,6.0324]
[1734558531103,78.06187197,208.61,208.45,17.64187197]
[1734558531308,78.06187197,208.61,208.46,3.0352]
[1734558531807,22.43677197,208.7,208.49,17.64187197]
[1734558531808,5.8786949,208.64,208.49,17.64187197]
[1734558532005,5.8786949,208.64,208.47,5.6]
[1734558532006,5.8786949,208.64,208.53,17.64187197]
[1734558532304,5.8786949,208.64,208.54,6.0911]
[1734558532511,5.8786949,208.64,208.57,17.64187197]
[1734558532813,0.2129,208.64,208.62,2.3982]
[1734558533200,0.2129,208.64,208.58,3.0352]
[1734558533407,0.2129,208.64,208.59,2.3985]
[1734558533713,0.2129,208.64,208.58,3.0352]
[1734558533917,0.2129,208.64,208.58,5.4339]
[1734558534610,0.2129,208.64,208.59,2.3985]
[1734558534913,0.2129,208.64,208.58,3.0352]
[1734558535913,2.611,208.64,208.58,5.4339]
[1734558536410,0.2129,208.64,208.6,2.3984]
[1734558536813,0.2129,208.64,208.58,3.0352]
[1734558537215,0.2129,208.64,208.59,2.3986]
[1734558537413,0.2129,208.64,208.58,3.0352]
[1734558538218,17.64187197,208.75,208.58,3.0352]
[1734558538525,23.24187197,208.75,208.58,3.0352]
[1734558538928,5.84328524,208.77,208.61,17.64187197]
[1734558539223,17.64187197,208.79,208.61,17.64187197]
[1734558539615,2.3967,208.76,208.7,2.3972]